fUSD/lending_fUSD_20240329
["ID","MTS","AMOUNT","RATE_DAILY","PERIOD"]
[320975198,1711726257612,-373.63582265,0.00050136,120]
[320975199,1711726257623,-500.0,0.00050136,120]
[320975200,1711726257633,-500.0,0.00050136,120]
[320975201,1711726257643,-500.0,0.00050136,120]
[320975202,1711726257653,-305.45235534,0.00050136,120]
[320975203,1711726257663,-211.22,0.00050136,120]
[320975204,1711726257673,-500.0,0.00050136,120]
[320975205,1711726257683,-500.0,0.00050136,120]
[320975206,1711726257692,-500.0,0.00050136,120]
[320975207,1711726257702,-500.0,0.00050136,120]
[320975208,1711726257713,-500.0,0.00050136,120]
[320975209,1711726257722,-500.0,0.00050136,120]
[320975210,1711726257732,-500.0,0.00050136,120]
[320975211,1711726257741,-500.0,0.00050136,120]
[320975212,1711726257750,-500.0,0.00050136,120]
[320975213,1711726257760,-500.0,0.00050136,120]
[320975214,1711726257769,-500.0,0.00050136,120]
[320975215,1711726257778,-500.0,0.00050136,120]
[320975216,1711726257789,-500.0,0.00050136,120]
[320975217,1711726257798,-500.0,0.00050136,120]
[320975218,1711726257807,-500.0,0.00050136,120]
[320975219,1711726257817,-196.38027867,0.00050136,7]
[320975220,1711726257826,-1095.45,0.00050136,120]
[320975221,1711726257835,-500.0,0.00050136,120]
[320975222,1711726257845,-500.0,0.00050136,120]
[320975223,1711726257855,-500.0,0.00050136,120]
[320975224,1711726257864,-500.0,0.00050136,120]
[320975225,1711726257873,-1919.57,0.00050136,120]
[320975226,1711726257882,-500.0,0.00050136,120]
[320975227,1711726257892,-500.0,0.00050136,120]
[320975228,1711726257901,-500.0,0.00050136,120]
[320975229,1711726257911,-500.0,0.00050136,120]
[320975230,1711726257920,-790.31,0.00050136,120]
[320975231,1711726257930,-500.0,0.00050136,120]
[320975232,1711726257939,-500.0,0.00050136,120]
[320975233,1711726257949,-3250.79,0.00050136,120]
[320975234,1711726257958,-500.0,0.00050136,120]
[320975235,1711726257968,-500.0,0.00050136,120]
[320975236,1711726257977,-543.43,0.00050136,120]
[320975237,1711726257987,-500.0,0.00050136,120]
[320975238,1711726257997,-2026.92,0.00050136,120]
[320975239,1711726258006,-508.65,0.00050136,120]
[320975240,1711726258015,-2794.01,0.00050136,120]
[320975241,1711726258025,-543.18,0.00050136,120]
[320975242,1711726258034,-183.36563649,0.00050136,120]
[320975243,1711726258044,-500.0,0.00050136,120]
[320975244,1711726258053,-500.0,0.00050136,120]
[320975245,1711726258061,-725.25,0.00050136,120]
[320975246,1711726258070,-500.0,0.00050136,120]
[320975247,1711726258079,-500.0,0.00050136,120]
[320975248,1711726258088,-500.0,0.00050136,120]
[320975249,1711726258097,-500.0,0.00050136,120]
[320975250,1711726258106,-1985.65,0.00050136,120]
[320975251,1711726258115,-500.0,0.00050136,120]
[320975252,1711726258125,-778.03,0.00050136,120]
[320975253,1711726258134,-966.8,0.00050136,120]
[320975254,1711726258145,-15575.03,0.00050136,120]
[320975255,1711726258154,-500.0,0.00050136,120]
[320975256,1711726258163,-1347.71,0.00050136,120]
[320975257,1711726258173,-500.0,0.00050136,120]
[320975258,1711726258181,-500.0,0.00050136,120]
[320975259,1711726258191,-1542.42,0.00050136,120]
[320975260,1711726258199,-500.0,0.00050136,120]
[320975261,1711726258208,-500.0,0.00050136,120]
[320975262,1711726258217,-1449.82,0.00050136,120]
[320975263,1711726258226,-500.0,0.00050136,80]
[320975264,1711726258235,-2716.26,0.00050136,120]
[320975265,1711726258244,-764.96,0.00050136,120]
[320975266,1711726258253,-1663.53,0.00050136,120]
[320975267,1711726258262,-500.0,0.00050136,120]
[320975268,1711726258270,-1151.51,0.00050136,120]
[320975269,1711726258279,-500.0,0.00050136,120]
[320975270,1711726258290,-500.0,0.00050136,120]
[320975271,1711726258298,-769.64,0.00050136,120]
[320975272,1711726258307,-1016.62,0.00050136,120]
[320975273,1711726258317,-784.23,0.00050136,120]
[320975274,1711726258326,-500.0,0.00050136,120]
[320975275,1711726258335,-500.0,0.00050136,120]
[320975276,1711726258345,-500.0,0.00050136,120]
[320975277,1711726258354,-500.0,0.00050136,120]
[320975278,1711726258364,-1622.26,0.00050136,120]
[320975279,1711726258373,-500.0,0.00050136,120]
[320975280,1711726258383,-500.0,0.00050136,120]
[320975281,1711726258392,-1424.61,0.00050136,120]
[320975282,1711726258401,-500.0,0.00050136,120]
[320975283,1711726258410,-500.0,0.00050136,120]
[320975284,1711726258420,-500.0,0.00050136,120]
[320975285,1711726258430,-815.78,0.00050136,120]
[320975286,1711726258439,-500.0,0.00050136,120]
[320975287,1711726258449,-500.0,0.00050136,120]
[320975288,1711726258458,-500.0,0.00050136,120]
[320975289,1711726258468,-500.0,0.00050136,120]
[320975290,1711726258477,-500.0,0.00050136,120]
[320975291,1711726258487,-420.13610236,0.00050136,120]
[320975292,1711726258497,-500.0,0.00050136,60]
[320975293,1711726258506,-992.25,0.00050136,120]
[320975294,1711726258515,-11718.94,0.00050136,120]
[320975295,1711726258525,-383.68891999,0.00050136,120]
[320975296,1711726258534,-610.76,0.00050136,120]
[320975297,1711726258544,-743.51,0.00050136,120]
[320975298,1711726258553,-765.17,0.00050136,120]
[320975299,1711726258562,-890.38,0.00050136,120]
[320975300,1711726258572,-553.36,0.00050136,120]
[320975301,1711726258582,-8521.15,0.00050136,120]
[320975302,1711726258591,-500.0,0.00050136,120]
[320975303,1711726258601,-500.0,0.00050136,120]
[320975304,1711726258610,-500.0,0.00050136,120]
[320975305,1711726258620,-500.0,0.00050136,120]
[320975306,1711726258629,-500.0,0.00050136,120]
[320975307,1711726258639,-648.88,0.00050136,120]
[320975308,1711726258648,-500.0,0.00050136,120]
[320975309,1711726258658,-1919.3,0.00050136,120]
[320975310,1711726258667,-500.0,0.00050136,120]
[320975311,1711726258676,-500.0,0.00050136,120]
[320975312,1711726258685,-2207.99,0.00050136,120]
[320975313,1711726258695,-1309.66,0.00050136,120]
[320975314,1711726258704,-500.0,0.00050136,120]
[320975315,1711726258714,-557.08,0.00050136,120]
[320975316,1711726258723,-500.0,0.00050136,120]
[320975317,1711726258733,-1108.08,0.00050136,120]
[320975318,1711726258742,-1833.17,0.00050136,120]
[320975319,1711726258751,-500.0,0.00050136,120]
[320975320,1711726258760,-607.25,0.00050136,120]
[320975321,1711726258770,-815.81,0.00050136,120]
[320975322,1711726258779,-1018.76,0.00050136,120]
[320975323,1711726258790,-862.41,0.00050136,120]
[320975324,1711726258799,-500.0,0.00050136,120]
[320975325,1711726258808,-500.0,0.00050136,120]
[320975326,1711726258818,-500.0,0.00050136,120]
[320975327,1711726258827,-500.0,0.00050136,120]
[320975328,1711726258836,-1702.99,0.00050136,120]
[320975329,1711726258845,-1165.7,0.00050136,120]
[320975330,1711726258854,-1004.77,0.00050136,120]
[320975331,1711726258863,-500.0,0.00050136,120]
[320975332,1711726258872,-696.93,0.00050136,120]
[320975333,1711726258881,-500.0,0.00050136,120]
[320975334,1711726258891,-500.0,0.00050136,120]
[320975335,1711726258900,-500.0,0.00050136,120]
[320975336,1711726258910,-500.0,0.00050136,120]
[320975337,1711726258918,-500.0,0.00050136,120]
[320975338,1711726258928,-1354.93,0.00050136,21]
[320975339,1711726258937,-500.0,0.00050136,120]
[320975340,1711726258946,-977.65,0.00050136,120]
[320975341,1711726258956,-1113.41,0.00050136,120]
[320975342,1711726258965,-1037.80820722,0.00050136,120]
[320975343,1711726258974,-592.77053852,0.00050136,120]
[320975344,1711726258984,-500.0,0.00050136,120]
[320975345,1711726258993,-3333.95,0.00050136,120]
[320975346,1711726259003,-500.0,0.00050136,120]
[320975347,1711726259012,-500.0,0.00050136,120]
[320975348,1711726259021,-572.67,0.00050136,120]
[320975349,1711726259031,-683.76,0.00050136,120]
[320975350,1711726259041,-500.0,0.00050136,120]
[320975351,1711726259052,-500.0,0.00050136,120]
[320975352,1711726259063,-500.0,0.00050136,120]
[320975353,1711726259072,-7484.68,0.00050136,120]
[320975354,1711726259082,-1354.15,0.00050136,120]
[320975355,1711726259091,-500.0,0.00050136,120]
[320975356,1711726259101,-1280.61,0.00050136,120]
[320975357,1711726259110,-500.0,0.00050136,120]
[320975358,1711726259120,-500.0,0.00050136,120]
[320975359,1711726259130,-3298.9,0.00050136,120]
[320975360,1711726259141,-553.1,0.00050136,120]
[320975361,1711726259150,-500.0,0.00050136,120]
[320975362,1711726259160,-3130.3,0.00050136,120]
[320975363,1711726259170,-2135.45,0.00050136,120]
[320975364,1711726259179,-500.0,0.00050136,120]
[320975365,1711726259189,-1018.52,0.00050136,120]
[320975366,1711726259198,-2568.4,0.00050136,120]
[320975367,1711726259208,-594.87,0.00050136,120]
[320975368,1711726259218,-500.0,0.00050136,120]
[320975369,1711726259227,-824.29,0.00050136,120]
[320975370,1711726259237,-628.61,0.00050136,120]
[320975371,1711726259246,-1054.95,0.00050136,120]
[320975372,1711726259256,-532.08524026,0.00050136,120]
[320975373,1711726259266,-947.76,0.00050136,120]
[320975374,1711726259275,-500.0,0.00050136,120]
[320975375,1711726259284,-500.0,0.00050136,120]
[320975376,1711726259296,-500.0,0.00050136,120]
[320975377,1711726259307,-805.33,0.00050136,120]
[320975378,1711726259316,-500.0,0.00050136,120]
[320975379,1711726259325,-500.0,0.00050136,120]
[320975380,1711726259334,-652.14,0.00050136,120]
[320975381,1711726259343,-500.0,0.00050136,120]
[320975382,1711726259352,-1405.95,0.00050136,64]
[320975383,1711726259361,-500.0,0.00050136,120]
[320975384,1711726259370,-1684.07,0.00050136,120]
[320975385,1711726259379,-1222.42,0.00050136,120]
[320975386,1711726259388,-500.0,0.00050136,120]
[320975387,1711726259397,-500.0,0.00050136,120]
[320975388,1711726259406,-500.0,0.00050136,120]
[320975389,1711726259415,-647.43,0.00050136,120]
[320975390,1711726259424,-637.47,0.00050136,120]
[320975391,1711726259433,-500.0,0.00050136,120]
[320975392,1711726259442,-929.07,0.00050136,120]
[320975393,1711726259451,-500.0,0.00050136,120]
[320975394,1711726259461,-500.0,0.00050136,120]
[320975395,1711726259470,-506.23,0.00050136,120]
[320975396,1711726259479,-1752.94,0.00050136,120]
[320975397,1711726259488,-1482.27,0.00050136,120]
[320975398,1711726259498,-500.0,0.00050136,120]
[320975399,1711726259507,-1080.07,0.00050136,120]
[320975400,1711726259516,-500.0,0.00050136,120]
[320975401,1711726259525,-917.61,0.00050136,120]
[320975402,1711726259534,-500.0,0.00050136,120]
[320975403,1711726259545,-500.0,0.00050136,120]
[320975404,1711726259553,-824.53,0.00050136,120]
[320975405,1711726259562,-641.26,0.00050136,120]
[320975406,1711726259571,-500.0,0.00050136,120]
[320975407,1711726259580,-579.18,0.00050136,120]
[320975408,1711726259589,-572.87,0.00050136,120]
[320975409,1711726259598,-500.0,0.00050136,120]
[320975410,1711726259607,-1389.6,0.00050136,120]
[320975411,1711726259617,-975.56,0.00050136,120]
[320975412,1711726259626,-500.0,0.00050136,120]
[320975413,1711726259635,-500.0,0.00050136,120]
[320975414,1711726259644,-500.0,0.00050136,120]
[320975415,1711726259653,-500.0,0.00050136,120]
[320975416,1711726259662,-297.29902466,0.00050175,120]
[320975417,1711726259672,-160.66712715,0.00050242,60]
[320975418,1711726259681,-830.84,0.00050252,30]
[320975419,1711726259691,-151.35,0.00050252,60]
[320975420,1711726259700,-572.11,0.00050252,30]
[320975421,1711726259710,-154.15,0.00050252,30]
[320975422,1711726259719,-318.31,0.00050252,30]
[320975423,1711726259728,-153.2,0.00050252,30]
[320975424,1711726259738,-152.76,0.00050252,30]
[320975425,1711726259747,-347.71,0.00050252,30]
[320975426,1711726259757,-518.1,0.00050252,30]
[320975427,1711726259892,-347.71,0.00050252,30]
[320975428,1711726259903,-518.1,0.00050252,30]
[320975429,1711726259912,-346.42,0.00050252,30]
[320975430,1711726259921,-518.1,0.00050252,30]
[320975431,1711726259930,-518.1,0.00050252,30]
[320975432,1711726259939,-155.40987384,0.00050358,60]
[320975433,1711726259948,-373.0,0.0005038,15]
[320975434,1711726259957,-290.0,0.0005038,15]
[320975435,1711726259966,-150.5,0.0005038,15]
[320975436,1711726259975,-373.0,0.0005039,15]
[320975437,1711726259985,-290.0,0.0005039,15]
[320975438,1711726259994,-150.5,0.0005039,15]
[320975439,1711726260003,-373.0,0.000504,15]
[320975440,1711726260013,-290.0,0.000504,15]
[320975441,1711726260022,-150.5,0.000504,15]
[320975442,1711726260031,-651.09584144,0.00050407,2]
[320975443,1711726260043,-346123.02265399,0.0005041,36]
[320975444,1711726260053,-500.0,0.0005041,120]
[320975445,1711726260063,-500.0,0.0005041,120]
[320975446,1711726260073,-500.0,0.0005041,120]
[320975447,1711726260083,-500.0,0.0005041,120]
[320975448,1711726260093,-500.0,0.0005041,120]
[320975449,1711726260103,-500.0,0.0005041,120]
[320975450,1711726260112,-500.0,0.0005041,120]
[320975451,1711726260122,-500.0,0.0005041,120]
[320975452,1711726260131,-500.0,0.0005041,120]
[320975453,1711726260143,-500.0,0.0005041,120]
[320975454,1711726260152,-500.0,0.0005041,120]
[320975455,1711726260161,-500.0,0.0005041,120]
[320975456,1711726260171,-500.0,0.0005041,120]
[320975457,1711726260181,-500.0,0.0005041,120]
[320975458,1711726260190,-407.30728743,0.0005041,120]
[320975459,1711726260200,-500.0,0.0005041,120]
[320975460,1711726260210,-500.0,0.0005041,120]
[320975461,1711726260220,-500.0,0.0005041,120]
[320975462,1711726260229,-606.52996066,0.0005041,120]
[320975463,1711726260239,-500.0,0.0005041,120]
[320975464,1711726260248,-500.0,0.0005041,2]
[320975465,1711726260258,-500.0,0.0005041,120]
[320975466,1711726260268,-500.0,0.0005041,120]
[320975467,1711726260277,-500.0,0.0005041,120]
[320975468,1711726260288,-500.0,0.0005041,120]
[320975469,1711726260297,-500.0,0.0005041,120]
[320975470,1711726260306,-500.0,0.0005041,120]
[320975471,1711726260315,-500.0,0.0005041,120]
[320975472,1711726260324,-500.0,0.0005041,120]
[320975473,1711726260333,-500.0,0.0005041,120]
[320975474,1711726260342,-500.0,0.0005041,2]
[320975475,1711726260352,-500.0,0.0005041,120]
[320975476,1711726260362,-500.0,0.0005041,120]
[320975477,1711726260370,-500.0,0.0005041,120]
[320975478,1711726260380,-500.0,0.0005041,120]
[320975479,1711726260389,-500.0,0.0005041,120]
[320975480,1711726260398,-500.0,0.0005041,120]
[320975481,1711726260407,-500.0,0.0005041,120]
[320975482,1711726260417,-500.0,0.0005041,2]
[320975483,1711726260427,-510.43809143,0.0005041,120]
[320975484,1711726260436,-500.0,0.0005041,120]
[320975485,1711726260446,-318.60953987,0.0005041,120]
[320975486,1711726260455,-500.0,0.0005041,120]
[320975487,1711726260465,-900.75,0.0005041,120]
[320975488,1711726260474,-500.0,0.0005041,120]
[320975489,1711726260483,-500.0,0.0005041,120]
[320975490,1711726260492,-500.0,0.0005041,120]
[320975491,1711726260501,-500.0,0.0005041,120]
[320975492,1711726260510,-500.0,0.0005041,120]
[320975493,1711726260519,-500.0,0.0005041,120]
[320975494,1711726260529,-500.0,0.0005041,120]
[320975495,1711726260539,-541.27069194,0.0005041,120]
[320975496,1711726260549,-541.66,0.0005041,120]
[320975497,1711726260558,-500.0,0.0005041,120]
[320975498,1711726260567,-500.0,0.0005041,120]
[320975499,1711726260576,-500.0,0.0005041,120]
[320975500,1711726260585,-500.0,0.0005041,120]
[320975501,1711726260594,-500.0,0.0005041,120]
[320975502,1711726260604,-500.0,0.0005041,120]
[320975503,1711726260613,-500.0,0.0005041,120]
[320975504,1711726260622,-343.75351248,0.0005041,120]
[320975505,1711726260631,-500.0,0.0005041,120]
[320975506,1711726260640,-500.0,0.0005041,120]
[320975507,1711726260649,-500.0,0.0005041,120]
[320975508,1711726260658,-500.0,0.0005041,120]
[320975509,1711726260667,-500.0,0.0005041,120]
[320975510,1711726260676,-500.0,0.0005041,120]
[320975511,1711726260686,-500.0,0.0005041,120]
[320975512,1711726260695,-167.17730342,0.0005041,120]
[320975513,1711726260704,-500.0,0.0005041,120]
[320975514,1711726260713,-394.87298265,0.0005041,120]
[320975515,1711726260723,-500.0,0.0005041,120]
[320975516,1711726260731,-500.0,0.0005041,120]
[320975517,1711726260741,-500.0,0.0005041,120]
[320975518,1711726260750,-500.0,0.0005041,120]
[320975519,1711726260759,-500.0,0.0005041,120]
[320975520,1711726260768,-500.0,0.0005041,120]
[320975521,1711726260777,-171.82232103,0.0005041,120]
[320975522,1711726260788,-500.0,0.0005041,120]
[320975523,1711726260797,-500.0,0.0005041,120]
[320975524,1711726260806,-500.0,0.0005041,120]
[320975525,1711726260815,-500.0,0.0005041,120]
[320975526,1711726260824,-500.0,0.0005041,120]
[320975527,1711726260833,-500.0,0.0005041,120]
[320975528,1711726260842,-500.0,0.0005041,120]
[320975529,1711726260851,-500.0,0.0005041,120]
[320975530,1711726260860,-524.41,0.0005041,120]
[320975531,1711726260869,-500.0,0.0005041,120]
[320975532,1711726260878,-500.0,0.0005041,120]
[320975533,1711726260887,-290.35379009,0.0005041,120]
[320975534,1711726260896,-500.0,0.0005041,120]
[320975535,1711726260906,-500.0,0.0005041,120]
[320975536,1711726260915,-593.93,0.0005041,120]
[320975537,1711726260925,-500.0,0.0005041,120]
[320975538,1711726260934,-174.95,0.0005041,120]
[320975539,1711726260944,-2105.64,0.0005041,120]
[320975540,1711726260953,-500.0,0.0005041,120]
[320975541,1711726260962,-500.0,0.0005041,120]
[320975542,1711726260972,-500.0,0.0005041,120]
[320975543,1711726260981,-500.0,0.0005041,120]
[320975544,1711726260991,-500.0,0.0005041,120]
[320975545,1711726261001,-500.0,0.0005041,120]
[320975546,1711726261011,-500.0,0.0005041,120]
[320975547,1711726261020,-500.0,0.0005041,120]
[320975548,1711726261029,-832.0,0.0005041,120]
[320975549,1711726261041,-500.0,0.0005041,120]
[320975550,1711726261050,-500.0,0.0005041,120]
[320975551,1711726261059,-500.0,0.0005041,120]
[320975552,1711726261068,-500.0,0.0005041,120]
[320975553,1711726261077,-500.0,0.0005041,120]
[320975554,1711726261086,-500.0,0.0005041,120]
[320975555,1711726261095,-500.0,0.0005041,120]
[320975556,1711726261105,-500.0,0.0005041,120]
[320975557,1711726261114,-500.0,0.0005041,120]
[320975558,1711726261124,-500.0,0.0005041,120]
[320975559,1711726261134,-500.0,0.0005041,120]
[320975560,1711726261144,-500.0,0.0005041,120]
[320975561,1711726261154,-500.0,0.0005041,120]
[320975562,1711726261162,-500.0,0.0005041,120]
[320975563,1711726261171,-500.0,0.0005041,120]
[320975564,1711726261181,-500.0,0.0005041,120]
[320975565,1711726261191,-500.0,0.0005041,120]
[320975566,1711726261200,-500.0,0.0005041,120]
[320975567,1711726261211,-500.0,0.0005041,120]
[320975568,1711726261220,-500.0,0.0005041,120]
[320975569,1711726261230,-500.0,0.0005041,120]
[320975570,1711726261240,-500.0,0.0005041,120]
[320975571,1711726261249,-500.0,0.0005041,120]
[320975572,1711726261259,-500.0,0.0005041,120]
[320975573,1711726261269,-500.0,0.0005041,120]
[320975574,1711726261279,-482.35272346,0.0005041,120]
[320975575,1711726261292,-1095.45,0.0005041,120]
[320975576,1711726261302,-500.0,0.0005041,120]
[320975577,1711726261313,-500.0,0.0005041,120]
[320975578,1711726261323,-500.0,0.0005041,120]
[320975579,1711726261332,-500.0,0.0005041,120]
[320975580,1711726261342,-1919.57,0.0005041,120]
[320975581,1711726261351,-500.0,0.0005041,120]
[320975582,1711726261361,-500.0,0.0005041,120]
[320975583,1711726261370,-500.0,0.0005041,120]
[320975584,1711726261379,-500.0,0.0005041,120]
[320975585,1711726261389,-790.31,0.0005041,120]
[320975586,1711726261398,-500.0,0.0005041,120]
[320975587,1711726261408,-500.0,0.0005041,120]
[320975588,1711726261417,-3250.79,0.0005041,120]
[320975589,1711726261427,-500.0,0.0005041,120]
[320975590,1711726261436,-500.0,0.0005041,120]
[320975591,1711726261446,-543.43,0.0005041,120]
[320975592,1711726261455,-2026.92,0.0005041,120]
[320975593,1711726261464,-2794.01,0.0005041,120]
[320975594,1711726261474,-508.65,0.0005041,120]
[320975595,1711726261483,-543.18,0.0005041,120]
[320975596,1711726261493,-500.0,0.0005041,120]
[320975597,1711726261502,-500.0,0.0005041,120]
[320975598,1711726261512,-725.25,0.0005041,120]
[320975599,1711726261521,-500.0,0.0005041,120]
[320975600,1711726261530,-500.0,0.0005041,120]
[320975601,1711726261542,-500.0,0.0005041,120]
[320975602,1711726261551,-500.0,0.0005041,120]
[320975603,1711726261560,-1985.65,0.0005041,120]
[320975604,1711726261569,-500.0,0.0005041,120]
[320975605,1711726261578,-778.03,0.0005041,120]
[320975606,1711726261587,-966.8,0.0005041,120]
[320975607,1711726261596,-15575.03,0.0005041,120]
[320975608,1711726261606,-500.0,0.0005041,120]
[320975609,1711726261615,-1347.71,0.0005041,120]
[320975610,1711726261624,-500.0,0.0005041,120]
[320975611,1711726261634,-500.0,0.0005041,120]
[320975612,1711726261643,-1542.42,0.0005041,120]
[320975613,1711726261652,-500.0,0.0005041,120]
[320975614,1711726261661,-500.0,0.0005041,120]
[320975615,1711726261670,-1449.82,0.0005041,120]
[320975616,1711726261679,-500.0,0.0005041,80]
[320975617,1711726261688,-2716.26,0.0005041,120]
[320975618,1711726261697,-764.96,0.0005041,120]
[320975619,1711726261707,-1663.53,0.0005041,120]
[320975620,1711726261716,-500.0,0.0005041,120]
[320975621,1711726261725,-1151.51,0.0005041,120]
[320975622,1711726261734,-500.0,0.0005041,120]
[320975623,1711726261744,-500.0,0.0005041,120]
[320975624,1711726261753,-769.64,0.0005041,120]
[320975625,1711726261762,-1016.62,0.0005041,120]
[320975626,1711726261770,-311.12320981,0.0005041,120]
[320975627,1711726261780,-784.23,0.0005041,120]
[320975628,1711726261791,-500.0,0.0005041,120]
[320975629,1711726261801,-500.0,0.0005041,120]
[320975630,1711726261810,-500.0,0.0005041,120]
[320975631,1711726261819,-1622.26,0.0005041,120]
[320975632,1711726261829,-500.0,0.0005041,120]
[320975633,1711726261838,-500.0,0.0005041,120]
[320975634,1711726261847,-1424.61,0.0005041,120]
[320975635,1711726261856,-500.0,0.0005041,120]
[320975636,1711726261865,-500.0,0.0005041,120]
[320975637,1711726261874,-500.0,0.0005041,120]
[320975638,1711726261883,-815.78,0.0005041,120]
[320975639,1711726262012,-500.0,0.0005041,120]
[320975640,1711726262022,-500.0,0.0005041,120]
[320975641,1711726262031,-500.0,0.0005041,120]
[320975642,1711726262041,-500.0,0.0005041,120]
[320975643,1711726262050,-500.0,0.0005041,120]
[320975644,1711726262060,-500.0,0.0005041,60]
[320975645,1711726262069,-992.25,0.0005041,120]
[320975646,1711726262078,-11718.94,0.0005041,120]
[320975647,1711726262088,-743.51,0.0005041,120]
[320975648,1711726262096,-765.17,0.0005041,120]
[320975649,1711726262105,-890.38,0.0005041,120]
[320975650,1711726262114,-553.36,0.0005041,120]
[320975651,1711726262126,-8521.15,0.0005041,120]
[320975652,1711726262135,-500.0,0.0005041,120]
[320975653,1711726262144,-500.0,0.0005041,120]
[320975654,1711726262153,-500.0,0.0005041,120]
[320975655,1711726262163,-500.0,0.0005041,120]
[320975656,1711726262172,-500.0,0.0005041,120]
[320975657,1711726262181,-648.88,0.0005041,120]
[320975658,1711726262190,-500.0,0.0005041,120]
[320975659,1711726262199,-1919.3,0.0005041,120]
[320975660,1711726262210,-500.0,0.0005041,120]
[320975661,1711726262222,-500.0,0.0005041,120]
[320975662,1711726262231,-2207.99,0.0005041,120]
[320975663,1711726262241,-1309.66,0.0005041,120]
[320975664,1711726262250,-500.0,0.0005041,120]
[320975665,1711726262259,-557.08,0.0005041,120]
[320975666,1711726262269,-500.0,0.0005041,120]
[320975667,1711726262278,-1108.08,0.0005041,120]
[320975668,1711726262289,-1833.17,0.0005041,120]
[320975669,1711726262300,-500.0,0.0005041,120]
[320975670,1711726262309,-607.25,0.0005041,120]
[320975671,1711726262319,-815.81,0.0005041,120]
[320975672,1711726262327,-1018.76,0.0005041,120]
[320975673,1711726262336,-862.41,0.0005041,120]
[320975674,1711726262345,-500.0,0.0005041,120]
[320975675,1711726262354,-500.0,0.0005041,120]
[320975676,1711726262365,-500.0,0.0005041,120]
[320975677,1711726262375,-500.0,0.0005041,120]
[320975678,1711726262384,-1702.99,0.0005041,120]
[320975679,1711726262393,-1165.7,0.0005041,120]
[320975680,1711726262403,-1004.77,0.0005041,120]
[320975681,1711726262413,-547.52636207,0.0005041,120]
[320975682,1711726262423,-696.93,0.0005041,120]
[320975683,1711726262432,-500.0,0.0005041,120]
[320975684,1711726262442,-500.0,0.0005041,120]
[320975685,1711726262452,-291.13852701,0.0005041,120]
[320975686,1711726262461,-500.0,0.0005041,120]
[320975687,1711726262470,-500.0,0.0005041,120]
[320975688,1711726262479,-1354.93,0.0005041,21]
[320975689,1711726262489,-500.0,0.0005041,120]
[320975690,1711726262499,-977.65,0.0005041,120]
[320975691,1711726262509,-1113.41,0.0005041,120]
[320975692,1711726262518,-500.0,0.0005041,120]
[320975693,1711726262527,-3333.95,0.0005041,120]
[320975694,1711726262536,-500.0,0.0005041,120]
[320975695,1711726262548,-500.0,0.0005041,120]
[320975696,1711726262557,-572.67,0.0005041,120]
[320975697,1711726262567,-683.76,0.0005041,120]